[Event "1st Serbian League 2022"]
[Site "Vrnjacka Banja"]
[Date "2022.09.22"]
[Round "3.25"]
[White "Risteski, Emil"]
[Black "Tadic, Stefan"]
[Result "1/2-1/2"]
[ECO "B56"]
[WhiteElo "2364"]
[BlackElo "2318"]
[Annotator "TA"]
[PlyCount "45"]
[EventDate "2022.09.20"]
[EventType "team-tourn"]
[EventCountry "SRB"]
[SourceTitle "playchess.com"]
[Source "ChessBase"]
[SourceQuality "1"]
[TimeControl "40/5400+30:1800+30"]

{[%evp 9,45,31,34,18,43,37,20,31,33,24,38,41,30,18,27,-1,8,12,45,-81,-77,-76,-86,-70,117,-173,-45,-41,-50,-43,0,0,0,0,0,-11,0,0]} 1. e4 {[%emt 0:00:18]} c5 {[%emt 0:00:28]} 2. Nf3 {[%emt 0:00:08][%cal Bg1f3,Bf3d4,Bd4b3][%mdl 32]} d6 {[%emt 0:00:38]} 3. d4 {[%emt 0:00:25]} cxd4 {[%emt 0:00:32]} 4. Nxd4 {[%emt 0:00:09]} Nf6 {[%emt 0:00:37]} 5. Nc3 {[%emt 0:00:22]} Bd7 {[%emt 0:01:06]} 6. f3 {[%emt 0:01:57] B56: Classical Sicilian: Unusual Lines.} e5 {[%emt 0:00:59]} 7. Nb3 {[%emt 0:00:07]} Be7 {[%emt 0:01:49]} 8. Be3 {[%emt 0:00:16]} O-O {[%emt 0:03:40]} 9. Qd2 {[%emt 0:01:43]} a5 {[%emt 0:00:07]} 10. a4 {[%emt 0:00:07]} Na6 {[%emt 0:00:59][%cal Bb8a6,Ba6c7,Bc7d5,Bd5f4][%mdl 32]} 11. g4 {[%emt 0:04:34][%cal Bg2g4,Bg4g5][%mdl 32] [#]} d5 $146 {[%emt 0:30:55]} ({Predecessor:} 11... Nb4 12. O-O-O Rc8 13. Kb1 Be6 14. g5 Nh5 15. Rg1 Kh8 16. Bb5 Qc7 17. h4 f5 {½-½ (17) Hracek,Z (2594)-Predojevic,B (2640) Sibenik 2016}) 12. exd5 {[%emt 1:26:24] d6 is the strong threat.} Bb4 {[%emt 0:00:20]} 13. g5 {[%emt 0:00:00]} Nh5 {[%emt 0:11:00]} 14. Bb5 {[%emt 0:00:00] [#]} (14. Bxa6 $14 bxa6 15. Bc5) 14... Bxb5 $1 $17 {[%emt 0:12:24]} 15. axb5 {[%emt 0:00:00]} Nc7 {[%emt 0:00:05]} 16. Bc5 {[%emt 0:00:00]} Re8 $2 {[%emt 0:02:36]} (16... Nxb5 $15 {keeps the upper hand.} 17. Bxf8 (17. Bxb4 axb4 18. Nxb5 Rxa1+ 19. Nxa1 Qa5 $17) 17... Qxf8) 17. O-O-O $2 {[%emt 0:00:00][%mdl 8192]} (17. d6 $16 {is necessary to keep the advantage.} Bxc3 18. bxc3) 17... Nf4 {[%emt 0:06:47]} (17... Bxc3 $19 18. Qxc3 Nxd5) 18. Bxb4 {[%emt 0:00:00]} axb4 {[%emt 0:00:02]} 19. Ne2 {[%emt 0:00:00]} Ncxd5 {[%emt 0:06:59]} 20. Nxf4 {[%emt 0:00:00] The position is equal.} Nxf4 {[%emt 0:00:02]} 21. h4 {[%emt 0:00:00]} Qb6 {[%emt 0:05:32]} 22. Qxb4 {[%emt 0:00:00]} Qe3+ {[%emt 0:01:20]} 23. Kb1 $1 {[%emt 0:00:00] Weighted Error Value: White=0.28 (precise) /Black=0.31} 1/2-1/2

[Event "1st Serbian League 2022"]
[Site "Vrnjacka Banja"]
[Date "2022.09.22"]
[Round "3.26"]
[White "Ivanovic, Marko"]
[Black "Djokic, Mihailo"]
[Result "0-1"]
[ECO "B48"]
[WhiteElo "2265"]
[BlackElo "2197"]
[Annotator "TA"]
[PlyCount "152"]
[EventDate "2022.09.20"]
[EventType "team-tourn"]
[EventCountry "SRB"]
[SourceTitle "playchess.com"]
[Source "ChessBase"]
[SourceQuality "1"]
[TimeControl "40/5400+30:1800+30"]

{[%evp 11,152,28,45,40,39,39,36,43,37,37,106,110,102,91,86,0,101,80,103,100,104,106,87,19,17,22,59,65,63,-239,21,25,42,35,37,-29998,37,31,25,28,43,41,46,14,41,47,77,77,77,87,53,58,79,56,49,0,0,0,0,0,0,0,0,0,0,0,0,0,15,15,23,0,0,0,0,0,0,0,0,0,0,-5,-5,-6,0,0,0,0,0,-12,-16,-18,-20,-19,0,0,0,0,0,0,0,-18,-18,-23,-8,-8,0,0,0,-8,-8,-8,-7,-7,-7,-7,-7,-8,-5,-5,-5,-45,-45,-45,-8,-8,-8,-8,0,0,0,0,0,0,0,0,0,0,0,0,0,-29984,-29985]} 1. e4 {[%emt 0:00:07]} c5 {[%emt 0:00:03]} 2. Nf3 {[%emt 0:00:10]} e6 {[%emt 0:00:03]} 3. d4 {[%emt 0:00:17]} cxd4 {[%emt 0:00:05]} 4. Nxd4 {[%emt 0:00:06]} Nc6 {[%emt 0:00:02]} 5. Nc3 {[%emt 0:00:08]} Qc7 {[%emt 0:00:02]} 6. Be3 {[%emt 0:00:09]} a6 {[%emt 0:00:03]} 7. Qf3 {[%emt 0:00:08] B48: Sicilian: Taimanov: 5 Nc3 Qc7 6 Be3 a6 without Be2.} Bb4 {[%emt 0:01:29]} 8. Nxc6 {[%emt 0:11:39]} Bxc3+ {[%emt 0:09:35]} 9. bxc3 {[%emt 0:00:05][%cal Oe3d4] White is slightly better.} Qxc6 {[%emt 0:00:03]} 10. c4 {[%emt 0:08:48] [#]} Nf6 $146 {[%emt 0:06:12]} (10... Ne7 $1 $14) ({Predecessor:} 10... Ne7 11. e5 Qxf3 12. gxf3 d5 13. exd6 Nf5 14. O-O-O Bd7 15. Bb6 Bc6 16. Rg1 Kd7 {1-0 (32) Cumming,R (2369)-Roettgen,J (2060) Figueira da Foz 2021}) 11. e5 $16 {[%emt 0:01:54]} Nd5 {[%emt 0:01:22][%cal Bf6d5,Bd5e7,Be7c6,Bc6a5,Ba5c4][%mdl 32]} 12. Bd2 {[%emt 0:45:01]} Ne7 {[%emt 0:00:09]} 13. Qg4 {[%emt 0:00:56]} ({White should try} 13. Qxc6 $16 dxc6 14. Bd3) 13... h5 {[%emt 0:05:04]} (13... b5 $11) 14. Qxg7 {[%emt 0:02:11]} Qe4+ {[%emt 0:00:10]} 15. Be2 {[%emt 0:05:13]} Rg8 {[%emt 0:00:54]} 16. Qf6 {[%emt 0:00:59]} Nc6 {[%emt 0:01:12]} 17. Bc3 {[%emt 0:07:21]} ({Better is} 17. Qf4 $16 Qxe5 18. Qxe5 Nxe5 19. Bc3) 17... Qxc2 $11 {[%emt 0:05:56]} 18. Qf3 {[%emt 0:00:34]} b5 {[%emt 0:01:33]} 19. O-O {[%emt 0:05:16]} Bb7 {[%emt 0:01:56][%cal Oc2e2] aiming for ...Qxe2!} 20. Rac1 $2 {[%emt 0:00:05][%mdl 8192] [#]} (20. cxb5 Na5 21. Bxa5 (21. Rfc1 Qa4 $17) 21... Bxf3 22. Bxf3 axb5 $1 23. Bxa8 Qa4 $17) (20. Rfc1 $14 {stays ahead.} Qg6 21. g3 (21. cxb5 Nd8 $17)) 20... Qg6 $2 {[%emt 0:05:04]} (20... Qxe2 $1 $19 {[%mdl 512]} 21. Qxe2 Nd4 $1 {[%mdl 512]}) 21. g3 {[%emt 0:00:08]} (21. cxb5 $2 Nd8 22. Qg3 Qh7 23. bxa6 Bd5 $19) 21... Na5 {[%emt 0:04:17]} 22. Qxh5 {[%emt 0:02:45]} Qxh5 {[%emt 0:08:50]} 23. Bf3 $2 {[%emt 0:08:00][%mdl 8192]} (23. Bxh5 $14 Nxc4 24. Rfd1) 23... Qg4 $2 24. Bxg4 $14 {[%emt 0:00:00] A strong pair of Bishops.} Nxc4 {[%emt 0:00:31]} 25. Be2 {[%emt 0:00:00]} Bd5 {[%emt 0:00:59]} 26. Rfd1 {[%emt 0:00:00]} Rc8 {[%emt 0:01:08]} 27. f4 {[%emt 0:00:00]} Rc6 {[%emt 0:01:53]} 28. Kf2 {[%emt 0:00:00]} d6 {[%emt 0:02:11]} 29. Bxc4 {[%emt 0:00:00]} Rxc4 {[%emt 0:00:53]} 30. exd6 {[%emt 0:00:00]} Kd7 {[%emt 0:00:01]} 31. Be5 $1 {[%emt 0:00:00]} Rgc8 {[%emt 0:00:19]} 32. Rxc4 {[%emt 0:00:00]} Rxc4 $16 {[%emt 0:00:01][%mdl 4096] Endgame KRB-KRB} 33. a3 {[%emt 0:00:00]} (33. h4 $14 {is more appropriate.}) 33... Rc2+ $11 {[%emt 0:00:09]} 34. Ke3 {[%emt 0:00:00]} Rxh2 {[%emt 0:00:23]} 35. Rc1 {[%emt 0:00:00] Threatening mate with Rc7+.} Bc4 {[%emt 0:00:37]} 36. Kd4 {[%emt 0:01:09]} Kc6 {[%emt 0:00:13]} 37. g4 {[%emt 0:01:15]} Rd2+ {[%emt 0:03:33]} 38. Ke4 {[%emt 0:02:37]} Rd3 {[%emt 0:04:40]} 39. a4 {[%emt 0:00:30]} Ra3 {[%emt 0:00:42]} 40. axb5+ {[%emt 0:00:04]} axb5 {[%emt 0:00:04]} 41. f5 {[%emt 0:31:10] Strongly threatening fxe6.} exf5+ {[%emt 0:30:24]} 42. gxf5 {[%emt 0:00:31]} Ra2 {[%emt 0:01:27]} 43. Rd1 {[%emt 0:00:00] Black must now prevent d7.} Re2+ {[%emt 0:00:00]} 44. Kf4 {[%emt 0:00:00] Intending d7 and mate.} Kd7 {[%emt 0:00:00]} 45. Ra1 {[%emt 0:00:00] Threatens to win with Ra7+.} Ra2 {[%emt 0:00:00] Inhibits Ra7+.} 46. Rh1 {[%emt 0:00:00]} Rf2+ {[%emt 0:00:00]} 47. Ke4 {[%emt 0:00:00]} Bb3 {[%emt 0:00:00]} 48. Rh8 {[%emt 0:00:00]} Bc2+ {[%emt 0:00:00]} 49. Kd4 {[%emt 0:00:00]} Bxf5 {[%emt 0:00:00]} 50. Ra8 {[%emt 0:00:00]} Kc6 {[%emt 0:00:00]} 51. Ra7 {[%emt 0:00:00]} Rd2+ {[%emt 0:00:00]} 52. Ke3 {[%emt 0:00:00]} Rd3+ {[%emt 0:00:00]} 53. Kf4 {[%emt 0:00:00]} Be6 {[%emt 0:00:00]} 54. Ke4 {[%emt 0:00:00]} Rd5 {[%emt 0:00:00]} 55. Rc7+ {[%emt 0:00:00]} Kb6 {[%emt 0:00:00]} 56. Re7 {[%emt 0:00:55]} b4 {[%emt 0:00:00]} 57. Rc7 $1 {[%emt 0:00:12]} Kb5 {[%emt 0:00:00]} 58. Rb7+ {[%emt 0:00:09]} Kc4 {[%emt 0:00:00]} 59. Rc7+ {[%emt 0:00:04]} Kb3 {[%emt 0:00:00]} 60. Rb7 {[%emt 0:00:07]} Ra5 {[%emt 0:00:00] And now ...Bd5+ would win.} 61. Rc7 {[%emt 0:02:42]} (61. d7 Rd5 62. Rb6 f5+ 63. Kf4 Bxd7 $19) 61... Ka3 {[%emt 0:00:00]} 62. Bf6 {[%emt 0:00:40]} ({Don't play} 62. d7 f5+ 63. Kf4 Rd5 $17) 62... Rd5 {[%emt 0:05:55]} 63. Ra7+ {[%emt 0:00:07]} Kb3 {[%emt 0:00:05]} 64. Be5 {[%emt 0:00:03]} Rc5 {[%emt 0:01:47]} 65. Bf6 {[%emt 0:01:10]} Rc1 {[%emt 0:06:47]} 66. Rxf7 {[%emt 0:03:07]} Re1+ {[%emt 0:01:32]} (66... Bxf7 $5 67. d7 $8 Re1+ 68. Kf3 Bh5+ 69. Kf4 Rd1 $11) 67. Kf4 {[%emt 0:00:21]} Rf1+ {[%emt 0:01:29]} (67... Bxf7 $5 68. d7 $8 Rd1 $11) 68. Ke3 {[%emt 0:00:49]} Bxf7 {[%emt 0:00:54]} 69. d7 {[%emt 0:00:04]} Rxf6 {[%emt 0:00:11]} 70. d8=Q {[%emt 0:00:08] Against Rd6. KQ-KRB} Rc6 {[%emt 0:01:34]} 71. Qd1+ {[%emt 0:00:21]} Ka3 {[%emt 0:00:05]} 72. Qd7 {[%emt 0:00:31]} Rc3+ {[%emt 0:00:14]} 73. Kd2 {[%emt 0:00:04]} Bb3 {[%emt 0:00:12]} 74. Qa7+ {[%emt 0:00:08]} Ba4 {[%emt 0:00:14]} 75. Qe7 {[%emt 0:00:16]} Rb3 {[%emt 0:00:25]} 76. Kc1 $2 {[%emt 0:02:02][%mdl 8192] [#]} (76. Qe1 $11 Rb2+ 77. Ke3) 76... Rd3 $1 {[%emt 0:00:15] Weighted Error Value: White=0.25 (precise) /Black=0.22 (precise)} 0-1

[Event "1st Serbian League 2022"]
[Site "Vrnjacka Banja"]
[Date "2022.09.22"]
[Round "3.27"]
[White "Jocev, Milan"]
[Black "Sarenac, Ivan"]
[Result "1-0"]
[ECO "D76"]
[WhiteElo "2283"]
[BlackElo "2402"]
[Annotator "TA"]
[PlyCount "83"]
[EventDate "2022.09.20"]
[EventType "team-tourn"]
[EventCountry "SRB"]
[SourceTitle "playchess.com"]
[Source "ChessBase"]
[SourceQuality "1"]
[TimeControl "40/5400+30:1800+30"]

{[%evp 21,83,6,11,0,25,16,31,0,1,0,0,14,5,19,0,0,39,26,55,56,76,58,81,21,32,-28,34,8,183,122,256,239,239,249,245,258,257,253,368,372,369,336,384,375,445,427,530,526,878,799,789,787,785,779,764,737,798,789,847,825,1043,1077,1097,1078]} 1. d4 {[%emt 0:00:03]} Nf6 {[%emt 0:00:08]} 2. c4 {[%emt 0:00:10]} g6 {[%emt 0:00:36]} 3. g3 {[%emt 0:00:09]} Bg7 {[%emt 0:00:18]} 4. Bg2 {[%emt 0:00:20]} d5 {[%emt 0:00:08]} 5. cxd5 {[%emt 0:00:24]} Nxd5 {[%emt 0:00:06]} 6. Nf3 {[%emt 0:00:06]} O-O {[%emt 0:00:21]} 7. O-O {[%emt 0:00:13]} Nc6 {[%emt 0:00:38]} 8. e4 {[%emt 0:01:35]} Nb6 {[%emt 0:00:13]} 9. d5 {[%emt 0:00:14]} Na5 {[%emt 0:00:13]} 10. Nc3 {[%emt 0:00:48]} c6 {[%emt 0:00:49]} 11. Re1 {[%emt 0:00:55]} Re8 {[%emt 0:10:21]} 12. Bg5 {[%emt 0:10:41] D76: Fianchetto Grünfeld: Main Line with 7...Nb6.} h6 {[%emt 0:04:54]} 13. Bf4 {[%emt 0:00:53]} e5 {[%emt 0:01:45] [#]} (13... cxd5 {with more complications.} 14. exd5 Nac4 15. Ne5 Bf5) 14. Be3 $146 {[%emt 0:05:40] White is slightly better.} (14. dxe6 $5 Bxe6 15. Qc2 $11) ({Predecessor:} 14. dxe6 Bxe6 15. Be5 Qxd1 16. Rexd1 {½-½ (16) Arkell,K (2455)-Gormally,D (2415) Newcastle on Tyne 1998}) 14... cxd5 {[%emt 0:02:31]} 15. Bxb6 {[%emt 0:00:28]} Qxb6 {[%emt 0:00:46]} 16. Nxd5 {[%emt 0:00:17]} Qd8 {[%emt 0:00:27]} 17. Rc1 {[%emt 0:16:22] Hoping for Nc7.} Nc6 {[%emt 0:05:29]} 18. Qb3 {[%emt 0:05:06]} Bf8 {[%emt 0:07:55]} 19. Red1 {[%emt 0:07:23]} Bd6 {[%emt 0:07:57]} 20. Rd2 $36 {[%emt 0:05:05][%mdl 2048] White has the initiative.} Kg7 {[%emt 0:01:52]} 21. h4 {[%emt 0:13:57]} Rb8 {[%emt 0:07:55]} 22. h5 {[%emt 0:08:17] White has more active pieces.} (22. Qd1 $16 {aiming for Ne3.} Bf8 23. b4) 22... Bg4 $11 {[%emt 0:05:42]} 23. Nh2 {[%emt 0:06:18]} (23. hxg6 $14 fxg6 24. Qd3) 23... Be6 {[%emt 0:04:27]} (23... Bxh5 $2 24. g4 $18) (23... Qg5 $1 $11 24. Qe3 (24. f4 Qxh5 25. Nxg4 Qxg4 $15) 24... Qxh5) 24. Qe3 {[%emt 0:01:08]} Ne7 $2 {[%emt 0:15:26] [#] Black is now going downhill.} (24... Rc8 $11) 25. hxg6 {[%emt 0:03:47]} ({Don't play} 25. Qxa7 Bxd5 26. exd5 gxh5 $14) (25. Nc7 $1 $18 {[%cal Rc7e8][%mdl 512]} Qxc7 26. Rxc7 Bxc7 27. Qxa7) 25... fxg6 {[%emt 0:00:57] [#]} (25... Kxg6 $16 {was called for.} 26. Nc3 Qc7) 26. Nc7 $1 $18 {[%emt 0:02:45][%mdl 512]} Qxc7 {[%emt 0:05:03]} 27. Rxc7 {[%emt 0:00:10]} Bxc7 {[%emt 0:00:30] A strong pair of Bishops.} 28. Qxa7 {[%emt 0:00:30]} Nc6 {[%emt 0:00:30]} 29. Qc5 {[%emt 0:00:30]} Red8 {[%emt 0:00:30]} (29... Ba5 {was worth a try.}) 30. Rxd8 {[%emt 0:00:30]} Rxd8 {[%emt 0:00:30]} 31. Qb5 {[%emt 0:00:30]} Rd1+ {[%emt 0:00:30]} 32. Nf1 {[%emt 0:00:30]} Bc8 {[%emt 0:00:30]} 33. Kh2 {[%emt 0:00:30] White is clearly winning.} Rd4 {[%emt 0:00:30]} 34. a3 {[%emt 0:00:30] Prevents Rb4.} Na5 {[%emt 0:00:30]} 35. Qe8 {[%emt 0:00:30] Qe7+ is the strong threat.} Bd7 {[%emt 0:00:30]} 36. Qe7+ {[%emt 0:00:30]} Kg8 {[%emt 0:00:30]} 37. Qf6 {[%emt 0:00:30]} Rd6 {[%emt 0:00:30]} 38. Qxe5 {[%emt 0:00:30]} Nc6 {[%emt 0:00:30]} 39. Qc5 {[%emt 0:00:30]} Rf6 {[%emt 0:00:30]} 40. f4 {[%emt 0:00:30]} h5 {[%emt 0:00:30]} 41. e5 {[%emt 0:40:44]} Rf8 {[%emt 0:43:52]} 42. Qd5+ {[%emt 0:00:09] Weighted Error Value: White=0.15 (very precise) /Black=0.47} 1-0

[Event "1st Serbian League 2022"]
[Site "Vrnjacka Banja"]
[Date "2022.09.22"]
[Round "3.28"]
[White "Arsovic, Zoran"]
[Black "Radojicic, Aleksandar M"]
[Result "1-0"]
[ECO "A43"]
[WhiteElo "2362"]
[BlackElo "2192"]
[Annotator "TA"]
[PlyCount "97"]
[EventDate "2022.09.20"]
[EventType "team-tourn"]
[EventCountry "SRB"]
[SourceTitle "playchess.com"]
[Source "ChessBase"]
[SourceQuality "1"]
[TimeControl "40/5400+30:1800+30"]

{[%evp 9,96,30,28,18,42,35,31,9,8,16,19,16,29,13,35,24,37,15,15,0,0,0,13,0,87,94,129,129,158,155,196,174,233,174,181,182,179,182,191,95,78,22,219,179,224,184,153,172,167,112,147,146,137,120,232,151,138,70,69,0,188,119,124,50,50,14,7,8,18,0,0,-6,0,0,262,290,245,237,290,279,261,288,268,275,29984,29985,29992,29993,29999]} 1. d4 {[%emt 0:00:10]} Nf6 {[%emt 0:00:07]} 2. Nf3 {[%emt 0:00:53]} c5 {[%emt 0:00:09]} 3. d5 {[%emt 0:00:32]} b5 {[%emt 0:00:25]} 4. Bg5 {[%emt 0:00:23]} g6 {[%emt 0:00:11]} 5. Bxf6 {[%emt 0:02:13]} exf6 {[%emt 0:00:02]} 6. e4 {[%emt 0:00:35] A43: Schmid Benoni.} b4 {[%emt 0:00:12] outshines the older 6...a6.} 7. Nbd2 {[%emt 0:01:45]} Bg7 {[%emt 0:00:22]} 8. Nc4 {[%emt 0:05:20] Nd6+ is the strong threat. White is slightly better.} d6 {[%emt 0:00:11]} 9. Bd3 {[%emt 0:01:42]} O-O {[%emt 1:33:21]} 10. O-O {[%emt 0:08:46]} Qc7 {[%emt 0:00:00]} 11. Nfd2 {[%emt 0:09:53] [#]} Bb7 $146 {[%emt 0:00:00][%cal Of6f5]} ({Predecessor:} 11... Nd7 12. f4 Nb6 13. Qf3 f5 14. e5 Bb7 15. Nxd6 Bxd5 16. Qe2 Rfd8 17. N2c4 Bf8 {1-0 (95) Isfan,I (2256)-Ciorgovean,I (2305) Mamaia 2021}) 12. Qf3 {[%emt 0:14:26]} Nd7 {[%emt 0:00:00]} 13. Qg3 {[%emt 0:02:10]} Ne5 {[%emt 0:00:00]} 14. f4 {[%emt 0:18:58]} Nxd3 {[%emt 0:00:00]} 15. Qxd3 {[%emt 0:01:12]} f5 {[%emt 0:00:00]} 16. exf5 {[%emt 0:06:05]} gxf5 {[%emt 0:00:00]} (16... Rae8 $11) 17. Qxf5 $16 {[%emt 0:05:03]} Bc8 {[%emt 0:00:00]} 18. Qd3 {[%emt 0:01:05] White is more active.} f5 {[%emt 0:00:00]} 19. Rae1 {[%emt 0:01:06]} Bd7 {[%emt 0:00:00]} 20. Nf3 {[%emt 0:01:03]} h6 {[%emt 0:00:00]} (20... Bb5 {might work better.}) 21. Re2 {[%emt 0:05:54]} (21. Re7 $6 Bf6 22. Re2 Rfe8 $16) 21... Rae8 {[%emt 0:01:11]} 22. Rfe1 {[%emt 0:00:26]} Rxe2 {[%emt 0:00:27]} 23. Rxe2 {[%emt 0:00:06]} (23. Qxe2 $6 Re8 24. Qd1 Rxe1+ 25. Qxe1 Qb7 $16) 23... Bf6 {[%emt 0:00:02]} 24. g4 {[%emt 0:01:45]} (24. b3 $18 {and White stays clearly on top.}) 24... Bb5 {[%emt 0:03:04]} 25. gxf5 {[%emt 0:03:02]} (25. g5 $16 Bxb2 26. Re6 (26. gxh6 Bf6 $16)) 25... Kh8 $2 {[%emt 0:02:11]} (25... Bxb2 $1 $11 26. Nfd2 Bd4+ 27. Kh1 Bxc4 28. Nxc4 (28. Rg2+ Kh8 $14) 28... Qf7) 26. b3 $1 $18 {[%emt 0:03:47]} Rg8+ {[%emt 0:00:48]} 27. Rg2 {[%emt 0:00:27]} Rxg2+ {[%emt 0:00:40]} 28. Kxg2 {[%emt 0:00:05]} Qg7+ {[%emt 0:00:28]} 29. Kf1 {[%emt 0:04:14]} (29. Kf2 $18) 29... Be7 {[%emt 0:00:18]} 30. Qe4 {[%emt 0:00:27]} Bd7 {[%emt 0:00:09] Inhibits Qe6.} 31. Ne3 {[%emt 0:00:35]} Qf6 {[%emt 0:00:31]} (31... Bf6 $16) 32. Kf2 {[%emt 0:00:26]} Kg7 {[%emt 0:00:37]} 33. Ng4 {[%emt 0:00:24]} ({Better is} 33. Nd2 $16) 33... Qf7 {[%emt 0:00:35]} 34. Ne3 {[%emt 0:00:25]} (34. f6+ $14 Bxf6 35. Ne3 (35. Nxf6 Kxf6 36. Nd2 Qh5 $11)) 34... Bf6 $2 {[%emt 0:00:52] [#]} (34... Qf6 $1 $11) 35. Kg3 {[%emt 0:01:02]} (35. Ne5 $1 $18 {[%mdl 512]} Bh4+ 36. Kg2 dxe5 37. fxe5) 35... Qh5 $16 {[%emt 0:00:13]} 36. h4 {[%emt 0:00:57]} (36. h3 $16) 36... Bc8 $14 {[%emt 0:00:33]} 37. Ng5 {[%emt 0:00:53]} hxg5 {[%emt 0:00:41]} 38. hxg5 {[%emt 0:00:06] Black must now prevent Nc4.} Bd8 {[%emt 0:00:30]} 39. Ng4 {[%emt 0:00:43][%mdl 1024] White has compensation.} Kf8 {[%emt 0:01:10]} 40. Nf2 {[%emt 0:00:52]} Qf7 {[%emt 0:00:00]} 41. f6 {[%emt 0:00:34]} Bb7 $2 {[%emt 0:05:52][%mdl 8192]} (41... Bxf6 $11 42. gxf6 Qxf6) 42. Qe6 $18 {[%emt 0:01:41]} Bxd5 {[%emt 0:05:22]} 43. Qxd6+ {[%emt 0:04:18]} Ke8 {[%emt 0:00:09]} 44. Nd3 {[%emt 0:07:40]} (44. Qxc5 Qe6 $16) 44... Qe6 {[%emt 0:08:03]} 45. Qxc5 {[%emt 0:03:43] Threatens to win with Ne5. Dancing on a razor blade.} Qe4 {[%emt 0:03:50]} 46. Qb5+ {[%emt 0:00:51]} ({Weaker is} 46. Qxb4 Qg2+ 47. Kh4 Qh1+ 48. Kg3 Qf3+ 49. Kh4 Qh1+ 50. Kg3 Qf3+ 51. Kh4 Qh1+ $11) ({Worse is} 46. Qxa7 Qf3+ 47. Kh4 Qh1+ 48. Kg4 Qf3+ 49. Kh4 Qh1+ 50. Kg4 Qf3+ 51. Kh4 $11) 46... Kf7 $2 {[%emt 0:02:37]} (46... Bc6 $18 47. Qe5+ Kf7) 47. Qd7+ {[%emt 0:03:50] White mates.} Kg6 {[%emt 0:00:10]} 48. Ne5+ {[%emt 0:01:02]} Kh5 {[%emt 0:00:08]} 49. Qh3# {[%emt 0:01:03] Weighted Error Value: White=0.24 (precise) /Black=0.44} 1-0

[Event "1st Serbian League 2022"]
[Site "Vrnjacka Banja"]
[Date "2022.09.22"]
[Round "3.29"]
[White "Velikic, Adela"]
[Black "Radusinovic, Lazar"]
[Result "0-1"]
[ECO "B31"]
[WhiteElo "2272"]
[BlackElo "2308"]
[Annotator "TA"]
[PlyCount "80"]
[EventDate "2022.09.20"]
[EventType "team-tourn"]
[EventCountry "SRB"]
[SourceTitle "playchess.com"]
[Source "ChessBase"]
[SourceQuality "1"]
[TimeControl "40/5400+30:1800+30"]

{[%evp 14,80,31,26,47,18,22,20,23,17,17,0,0,0,0,0,0,0,0,0,22,12,22,14,27,14,39,-84,-87,-192,-110,-94,-93,-100,-49,-190,-187,-183,-177,-177,-162,-158,-164,-204,-131,-209,-221,-312,-265,-490,-385,-372,-376,-363,-358,-389,-377,-394,-368,-1868,-1218,-2474,-3654,-29978,-29980,-29986,-29980,-3008,-816]} 1. e4 {[%emt 0:00:08]} c5 {[%emt 0:00:06]} 2. Nf3 {[%emt 0:00:09]} Nc6 {[%emt 0:00:05]} 3. Bb5 {[%emt 0:00:09]} g6 {[%emt 0:01:29]} 4. O-O {[%emt 0:00:26]} Bg7 {[%emt 0:00:06]} 5. Re1 {[%emt 0:02:19]} e5 {[%emt 0:01:54]} 6. Bxc6 {[%emt 0:11:20]} dxc6 {[%emt 0:00:21]} 7. d3 {[%emt 0:00:49]} Ne7 {[%emt 0:02:43]} 8. Be3 {[%emt 0:06:19]} b6 {[%emt 0:01:35] B31: Sicilian: 2...Nc6 3 Bb5 g6.} 9. a4 {[%emt 0:00:29][%cal Oa4a5] was the old line (9.a3).} a5 {[%emt 0:01:54]} 10. Na3 {[%emt 0:04:20]} O-O {[%emt 0:03:19] The position is equal.} 11. Nc4 {[%emt 0:04:16]} Qc7 {[%emt 0:09:51]} 12. b4 {[%emt 0:12:07]} b5 {[%emt 0:10:12]} 13. axb5 {[%emt 0:11:28]} (13. Ncxe5 {looks sharper.} cxb4 14. d4 f5 15. exf5 Bxf5 16. axb5 cxb5 17. c3) 13... cxb5 {[%emt 0:00:37]} 14. Rxa5 {[%emt 0:02:50]} Rxa5 {[%emt 0:04:08]} 15. Nxa5 {[%emt 0:00:10]} cxb4 {[%emt 0:00:52]} 16. Nb3 {[%emt 0:00:14] [#]} Rd8 $146 {[%emt 0:05:45]} ({Predecessor:} 16... Nc6 17. Bc5 Rd8 18. Qd2 Be6 19. Rc1 Ra8 20. Bxb4 Ra2 21. Qc3 Qc8 22. Bc5 b4 {1-0 (49) Cabrilo,G (2480)-Cigan,S (2400) Cetinje 1990}) 17. Qb1 {[%emt 0:06:14]} Nc6 {[%emt 0:03:23]} 18. Qb2 {[%emt 0:04:14]} Bg4 {[%emt 0:01:59]} 19. Nfd2 {[%emt 0:05:32]} Nd4 {[%emt 0:05:17]} 20. f3 {[%emt 0:15:56]} (20. h3 $14 {keeps the upper hand.} Be6 21. Bxd4 exd4 22. Nf3) 20... Be6 $17 {[%emt 0:03:08] Black is much more active.} (20... Nxc2 $2 21. Rc1 Rxd3 22. Rxc2 $18 (22. fxg4 Rxe3 23. Qxc2 Rc3 $11)) 21. Bf2 {[%emt 0:07:19]} (21. Bxd4 $17 exd4 22. Ra1) 21... Qc3 {[%emt 0:07:44]} ({Worse is} 21... Nxc2 22. Rc1 Bxb3 23. Nxb3 (23. Qxb3 $2 Rc8 $19) 23... Rxd3 24. Rxc2 Rd1+ 25. Be1 Qb6+ 26. Kf1 Rxe1+ 27. Kxe1 $11) (21... Qxc2 $19 22. Qxc2 (22. Bxd4 $2 Qxb2 23. Bxb2 Rxd3 $19) 22... Nxc2) 22. Bxd4 {[%emt 0:02:29]} exd4 {[%emt 0:00:29]} 23. Rb1 {[%emt 0:01:03]} Qc7 {[%emt 0:03:58]} ({Black should play} 23... Rc8 $17 24. f4 Qxc2 25. Qxc2 Rxc2) 24. Qa2 {[%emt 0:01:08] This move loses the game for White.} ({White should try} 24. g3 $1 $15) 24... Bh6 $19 {[%emt 0:02:41]} 25. Nf1 {[%emt 0:00:26]} Rc8 {[%emt 0:04:12]} 26. Qb2 {[%emt 0:00:41]} Bg7 $36 {[%emt 0:00:25][%mdl 2048] Keeping White busy.} 27. Na1 {[%emt 0:00:18] [#]} Bf8 $1 {[%emt 0:02:27][%cal Bg7f8,Bf8h6,Bh6e3][%mdl 32]} 28. Kh1 {[%emt 0:00:12]} Qe5 {[%emt 0:03:56]} 29. Nb3 {[%emt 0:00:52] [#]} (29. Ng3 $17) 29... Rc3 $1 {[%emt 0:00:10]} 30. Nfd2 {[%emt 0:00:52]} (30. Na1 $142) 30... Bh6 {[%emt 0:01:07]} (30... Bd6 31. g3 $17) 31. g3 $2 {[%emt 0:00:29]} (31. Rd1) 31... Be3 {[%emt 0:01:30] And now ...Qc7 would win.} 32. Nf1 {[%emt 0:00:40]} Bxb3 {[%emt 0:04:42]} 33. cxb3 {[%emt 0:00:03]} Rxd3 {[%emt 0:02:02]} 34. Ra1 {[%emt 0:00:10]} Rc3 {[%emt 0:01:21]} 35. Ra8+ {[%emt 0:00:57]} Kg7 {[%emt 0:00:05]} 36. Rd8 $2 {[%emt 0:00:35]} (36. Nxe3 Rxe3 37. Rd8) 36... Qc7 {[%emt 0:01:13]} 37. Rd5 {[%emt 0:00:29]} Rc2 {[%emt 0:00:53]} 38. Qb1 {[%emt 0:00:14]} Qc3 {[%emt 0:00:32]} 39. Qd1 {[%emt 0:00:51]} Rc1 {[%emt 0:01:14]} 40. Qe2 {[%emt 0:00:05]} Qd2 {[%emt 0:00:11] Weighted Error Value: White=0.82/Black=0.27 (precise)} (40... Qxb3 $142 41. Re5 Qb1) 0-1